Workbook

Sheet B03
A1: 序号 | B1: 姓名 | C1: 身份证号码 | D1: 报考岗位 | E1: 抽签号 | F1: 半结构化面试成绩（占40%） | G1: 现场实际操作成绩（占60%） | H1: 最终面试成绩 | I1: 是否进入资格复审
A2: 1 | B2: 徐春晖 | C2: 520103************6039 | D2: A03 驾驶员 | E2: 3 | F2: =VLOOKUP(E:E,[1]Sheet1!$A:$K,11,FALSE) -> 92.33 | G2: =VLOOKUP(E:E,[2]Sheet1!$A:$K,11,FALSE) -> 93.33 | H2: =F2*0.4+G2*0.6 -> 92.93 | I2: 是
A3: 11 | B3: 邱德高翔 | C3: 520102************3814 | D3: A03 驾驶员 | E3: 11 | F3: =VLOOKUP(E:E,[1]Sheet1!$A:$K,11,FALSE) -> 95.33 | G3: =VLOOKUP(E:E,[2]Sheet1!$A:$K,11,FALSE) -> 80.67 | H3: 86.53 | I3: 是
A4: 6 | B4: 刘文涛 | C4: 522225************1214 | D4: A03 驾驶员 | E4: 8 | F4: =VLOOKUP(E:E,[1]Sheet1!$A:$K,11,FALSE) -> 88.67 | G4: =VLOOKUP(E:E,[2]Sheet1!$A:$K,11,FALSE) -> 82.67 | H4: 85.07 | I4: 是
A5: 4 | B5: 杨金剑 | C5: 520202************803X | D5: A03 驾驶员 | E5: 9 | F5: =VLOOKUP(E:E,[1]Sheet1!$A:$K,11,FALSE) -> 72.67 | G5: =VLOOKUP(E:E,[2]Sheet1!$A:$K,11,FALSE) -> 78.33 | H5: 76.07 | I5: 是
A6: 5 | B6: 周厚桂 | C6: 522226************0417 | D6: A03 驾驶员 | E6: 6 | F6: =VLOOKUP(E:E,[1]Sheet1!$A:$K,11,FALSE) -> 82.33 | G6: =VLOOKUP(E:E,[2]Sheet1!$A:$K,11,FALSE) -> 54.67 | H6: 65.73
A7: 9 | B7: 龙景彬 | C7: 522628************6415 | D7: A03 驾驶员 | E7: 2 | F7: =VLOOKUP(E:E,[1]Sheet1!$A:$K,11,FALSE) -> 75.00 | G7: =VLOOKUP(E:E,[2]Sheet1!$A:$K,11,FALSE) -> 51.67 | H7: 61.00
A8: 8 | B8: 张少雄 | C8: 522121************5615 | D8: A03 驾驶员 | E8: 4 | F8: =VLOOKUP(E:E,[1]Sheet1!$A:$K,11,FALSE) -> 60.33 | G8: =VLOOKUP(E:E,[2]Sheet1!$A:$K,11,FALSE) -> 47.67 | H8: 52.73
A9: 3 | B9: 吴攀永 | C9: 522122************6659 | D9: A03 驾驶员 | E9: 10 | F9: =VLOOKUP(E:E,[1]Sheet1!$A:$K,11,FALSE) -> 66.33 | G9: =VLOOKUP(E:E,[2]Sheet1!$A:$K,11,FALSE) -> 41.67 | H9: 51.53
A10: 10 | B10: 令狐艳林 | C10: 522132************761X | D10: A03 驾驶员 | E10: 7 | F10: =VLOOKUP(E:E,[1]Sheet1!$A:$K,11,FALSE) -> 65.33 | G10: =VLOOKUP(E:E,[2]Sheet1!$A:$K,11,FALSE) -> 40.33 | H10: 50.33
A11: 2 | B11: 谭念太 | C11: 522633************0011 | D11: A03 驾驶员 | H11: 缺考
A12: 7 | B12: 于勇 | C12: 520113************161x | D12: A03 驾驶员 | H12: 缺考
A13: 12 | B13: 吴振威 | C13: 420881************0718 | D13: A03 驾驶员 | H13: 缺考
